fUSD/lending_fUSD_20260611
["ID","MTS","AMOUNT","RATE_DAILY","PERIOD"]
[424765925,1781141432000,-9135.09314262,0.00011481,2]
[424765926,1781141432000,-166.66,0.00011503,2]
[424765923,1781141432000,-172.9,0.00011385,2]
[424765927,1781141432000,-166.66,0.00011507,2]
[424765928,1781141432000,-250.0,0.00011547,2]
[424765922,1781141432000,-150.0,0.00011385,2]
[424765932,1781141432000,-1966.8872473,0.00011564,2]
[424765929,1781141432000,-500.0,0.00011547,2]
[424765931,1781141432000,-1303.74406234,0.00011564,2]
[424765920,1781141432000,-166.66,0.00011288,2]
[424765921,1781141432000,-1669.71,0.00011321,2]
[424765917,1781141432000,-150.0,0.00011178,2]
[424765919,1781141432000,-166.66,0.00011178,2]
[424765916,1781141432000,-166.66,0.00011147,2]
[424765918,1781141432000,-250.190654,0.00011178,7]
[424765930,1781141432000,-300.0,0.00011547,2]
[424765934,1781141432000,-728.96288957,0.00011625,2]
[424765941,1781141432000,-500.0,0.00011626,4]
[424765935,1781141432000,-500.0,0.00011626,4]
[424765939,1781141432000,-500.0,0.00011626,4]
[424765955,1781141432000,-2467.81688772,0.00011656,2]
[424765956,1781141432000,-3773.81892391,0.00011656,2]
[424765954,1781141432000,-348.2360598,0.00011656,2]
[424765944,1781141432000,-500.0,0.00011626,4]
[424765947,1781141432000,-500.0,0.00011626,2]
[424765951,1781141432000,-102258.90261924,0.00011656,2]
[424765952,1781141432000,-99899.28970233,0.00011656,2]
[424765950,1781141432000,-495.73200867,0.00011646,2]
[424765943,1781141432000,-500.0,0.00011626,4]
[424765945,1781141432000,-330.0,0.00011626,4]
[424765953,1781141432000,-1254.41808677,0.00011656,2]
[424765949,1781141432000,-2000.0,0.00011626,2]
[424765940,1781141432000,-500.0,0.00011626,4]
[424765936,1781141432000,-500.0,0.00011626,4]
[424765938,1781141432000,-500.0,0.00011626,4]
[424765942,1781141432000,-500.0,0.00011626,4]
[424765937,1781141432000,-500.0,0.00011626,4]
[424765948,1781141432000,-250.0,0.00011626,2]
[424765957,1781141437000,-1244.24383069,0.00011656,2]
[424765995,1781141438000,-500.0,0.00011855,2]
[424765986,1781141438000,-500.0,0.00011855,2]
[424765996,1781141438000,-500.0,0.00011855,2]
[424765987,1781141438000,-500.0,0.00011855,2]
[424765990,1781141438000,-500.0,0.00011855,2]
[424765992,1781141438000,-500.0,0.00011855,2]
[424765989,1781141438000,-500.0,0.00011855,2]
[424765991,1781141438000,-500.0,0.00011855,2]
[424765993,1781141438000,-500.0,0.00011855,2]
[424766008,1781141438000,-500.0,0.00011855,2]
[424766007,1781141438000,-500.0,0.00011855,2]
[424766000,1781141438000,-500.0,0.00011855,2]
[424766001,1781141438000,-500.0,0.00011855,2]
[424765997,1781141438000,-500.0,0.00011855,2]
[424765999,1781141438000,-500.0,0.00011855,2]
[424766003,1781141438000,-500.0,0.00011855,2]
[424766002,1781141438000,-500.0,0.00011855,2]
[424766004,1781141438000,-500.0,0.00011855,2]
[424766005,1781141438000,-500.0,0.00011855,2]
[424765988,1781141438000,-500.0,0.00011855,2]
[424766006,1781141438000,-500.0,0.00011855,2]
[424766009,1781141438000,-500.0,0.00011855,2]
[424765998,1781141438000,-529.95470496,0.00011855,2]
[424765984,1781141438000,-479.70129428,0.00011855,2]
[424765974,1781141438000,-151.0,0.00011853,2]
[424765980,1781141438000,-500.0,0.00011855,2]
[424765958,1781141438000,-537.27830085,0.00011656,2]
[424765960,1781141438000,-1288215.99558869,0.00011656,2]
[424765963,1781141438000,-4500.0,0.000117,4]
[424765962,1781141438000,-1905.3829,0.00011667,2]
[424765965,1781141438000,-6830.62534949,0.00011756,2]
[424765964,1781141438000,-43616.41761925,0.00011755,2]
[424765967,1781141438000,-12050.14705441,0.00011759,2]
[424765968,1781141438000,-1343.03436727,0.00011761,2]
[424765966,1781141438000,-2500.0,0.00011756,2]
[424765973,1781141438000,-151.0,0.00011853,2]
[424765969,1781141438000,-9000.0,0.000118,4]
[424765971,1781141438000,-375.28598103,0.00011836,7]
[424765975,1781141438000,-151.0,0.00011853,2]
[424765970,1781141438000,-175.0,0.000118,2]
[424765972,1781141438000,-151.0,0.00011853,2]
[424766011,1781141438000,-500.0,0.00011855,2]
[424765976,1781141438000,-151.0,0.00011853,2]
[424765983,1781141438000,-500.0,0.00011855,2]
[424765979,1781141438000,-500.0,0.00011855,2]
[424765981,1781141438000,-500.0,0.00011855,2]
[424765977,1781141438000,-151.0,0.00011853,2]
[424765978,1781141438000,-196.76169039,0.00011855,2]
[424765985,1781141438000,-500.0,0.00011855,2]
[424765982,1781141438000,-500.0,0.00011855,2]
[424766014,1781141438000,-316.23329044,0.00011855,2]
[424765994,1781141438000,-500.0,0.00011855,2]
[424766015,1781141438000,-500.0,0.00011855,2]
[424766058,1781141438000,-1062.51,0.00011965,2]
[424766057,1781141438000,-500.0,0.000119,2]
[424766055,1781141438000,-215.92376884,0.00011883,2]
[424766061,1781141438000,-48508.07,0.00012055,2]
[424766060,1781141438000,-500.0,0.00012054,2]
[424766059,1781141438000,-2000.0,0.00012004,2]
[424766053,1781141438000,-166.66,0.00011859,2]
[424766054,1781141438000,-1669.71,0.00011873,2]
[424766062,1781141438000,-43616.41761916,0.00012104,2]
[424766064,1781141438000,-500.0,0.00012174,2]
[424766066,1781141438000,-166.66,0.00012215,2]
[424766063,1781141438000,-1669.71,0.00012149,2]
[424766068,1781141438000,-255.0,0.00012229,2]
[424766067,1781141438000,-388.61104204,0.00012227,2]
[424766065,1781141438000,-12050.1470544,0.00012208,2]
[424766072,1781141438000,-500.0,0.00012448,2]
[424766070,1781141438000,-191.76,0.00012329,2]
[424766069,1781141438000,-1343.03436722,0.00012284,2]
[424766071,1781141438000,-1681.72146149,0.00012386,2]
[424766074,1781141438000,-214.035762,0.00012547,2]
[424766073,1781141438000,-43616.41761916,0.00012454,2]
[424766075,1781141438000,-223.144264,0.00012559,2]
[424766022,1781141438000,-500.0,0.00011855,2]
[424766052,1781141438000,-500.0,0.00011855,2]
[424766051,1781141438000,-500.0,0.00011855,2]
[424766056,1781141438000,-13500.0,0.000119,4]
[424766047,1781141438000,-500.0,0.00011855,2]
[424766050,1781141438000,-500.0,0.00011855,2]
[424766013,1781141438000,-500.0,0.00011855,2]
[424766020,1781141438000,-500.0,0.00011855,2]
[424766010,1781141438000,-500.0,0.00011855,2]
[424766012,1781141438000,-500.0,0.00011855,2]
[424766016,1781141438000,-488.06632751,0.00011855,2]
[424766035,1781141438000,-500.0,0.00011855,2]
[424766025,1781141438000,-500.0,0.00011855,2]
[424766027,1781141438000,-500.0,0.00011855,2]
[424766038,1781141438000,-500.0,0.00011855,2]
[424766041,1781141438000,-500.0,0.00011855,2]
[424766040,1781141438000,-500.0,0.00011855,2]
[424766018,1781141438000,-500.0,0.00011855,2]
[424766039,1781141438000,-500.0,0.00011855,2]
[424766037,1781141438000,-500.0,0.00011855,2]
[424766048,1781141438000,-500.0,0.00011855,2]
[424766044,1781141438000,-500.0,0.00011855,2]
[424766049,1781141438000,-500.0,0.00011855,2]
[424766042,1781141438000,-500.0,0.00011855,2]
[424766046,1781141438000,-483.34739476,0.00011855,2]
[424766043,1781141438000,-500.0,0.00011855,2]
[424766033,1781141438000,-500.0,0.00011855,2]
[424766031,1781141438000,-500.0,0.00011855,2]
[424766029,1781141438000,-500.0,0.00011855,2]
[424766045,1781141438000,-500.0,0.00011855,2]
[424766115,1781141439000,-151.0,0.0001315,2]
[424766104,1781141439000,-219.74228915,0.00012861,2]
[424766107,1781141439000,-1681.72146149,0.00012928,2]
[424766106,1781141439000,-1681.72146149,0.00012888,2]
[424766110,1781141439000,-1681.72146149,0.00013034,2]
[424766108,1781141439000,-1681.72146149,0.00012966,2]
[424766109,1781141439000,-1681.72146149,0.00013001,2]
[424766105,1781141439000,-275.96,0.00012877,2]
[424766116,1781141439000,-43616.41761916,0.00013153,2]
[424766112,1781141439000,-1681.72146149,0.00013096,2]
[424766111,1781141439000,-1681.72146149,0.00013066,2]
[424766121,1781141439000,-1681.72146149,0.00013206,2]
[424766113,1781141439000,-12050.1470544,0.00013105,2]
[424766118,1781141439000,-1681.72146149,0.0001318,2]
[424766117,1781141439000,-1681.72146149,0.00013153,2]
[424766122,1781141439000,-1681.72146149,0.00013231,2]
[424766119,1781141439000,-232.066015,0.00013187,2]
[424766120,1781141439000,-187.74025,0.00013187,2]
[424766123,1781141439000,-1303.74406233,0.00013232,2]
[424766124,1781141439000,-286.592739,0.0001324,2]
[424766125,1781141439000,-224.475517,0.00013253,2]
[424766127,1781141439000,-1681.72146149,0.00013279,2]
[424766101,1781141439000,-43616.41761916,0.00012803,2]
[424766114,1781141439000,-1681.72146149,0.00013125,2]
[424766100,1781141439000,-1000.0,0.000128,2]
[424766126,1781141439000,-1681.72146149,0.00013256,2]
[424766103,1781141439000,-1681.72146149,0.00012845,2]
[424766081,1781141439000,-413.02855,0.00012559,2]
[424766082,1781141439000,-166.66,0.00012572,2]
[424766083,1781141439000,-1681.72146149,0.00012591,2]
[424766080,1781141439000,-163.993319,0.00012559,2]
[424766077,1781141439000,-160.0,0.00012559,2]
[424766078,1781141439000,-170.181744,0.00012559,2]
[424766076,1781141439000,-162.960226,0.00012559,2]
[424766079,1781141439000,-180.363488,0.00012559,2]
[424766085,1781141439000,-210.168008,0.0001261,2]
[424766089,1781141439000,-169.230759,0.00012622,2]
[424766091,1781141439000,-12050.1470544,0.00012656,2]
[424766102,1781141439000,-1343.03436722,0.00012807,2]
[424766093,1781141439000,-1681.72146149,0.00012676,2]
[424766086,1781141439000,-260.336017,0.0001261,2]
[424766084,1781141439000,-160.0,0.0001261,2]
[424766092,1781141439000,-500.0,0.00012675,2]
[424766088,1781141439000,-164.615379,0.00012622,2]
[424766094,1781141439000,-158.52695956,0.00012684,2]
[424766087,1781141439000,-160.0,0.00012622,2]
[424766095,1781141439000,-444.102394,0.00012685,2]
[424766097,1781141439000,-516.46225149,0.00012722,2]
[424766096,1781141439000,-420.228492,0.00012713,2]
[424766099,1781141439000,-1681.72146149,0.00012796,2]
[424766098,1781141439000,-1681.72146149,0.00012741,2]
[424766090,1781141439000,-338.765073,0.00012622,2]
[424766129,1781141439000,-1681.72146149,0.00013303,2]
[424766134,1781141439000,-1343.03436722,0.00013331,2]
[424766130,1781141439000,-1000.0,0.00013303,2]
[424766158,1781141439000,-150.0,0.00013488,2]
[424766161,1781141439000,-150.0,0.00013488,2]
[424766160,1781141439000,-150.0,0.00013488,2]
[424766162,1781141439000,-150.0,0.00013488,2]
[424766163,1781141439000,-150.0,0.00013488,2]
[424766165,1781141439000,-150.0,0.00013488,2]
[424766164,1781141439000,-150.0,0.00013488,2]
[424766167,1781141439000,-150.0,0.00013488,2]
[424766168,1781141439000,-203.80794025,0.00013488,2]
[424766170,1781141439000,-43616.41761916,0.00013502,2]
[424766166,1781141439000,-262.51080965,0.00013488,2]
[424766169,1781141439000,-1681.72146149,0.0001349,2]
[424766171,1781141439000,-262.51080965,0.00013503,2]
[424766172,1781141439000,-1681.72146149,0.00013509,2]
[424766173,1781141439000,-150.0,0.00013514,2]
[424766175,1781141439000,-150.0,0.00013524,2]
[424766179,1781141439000,-262.51080965,0.00013533,2]
[424766178,1781141439000,-150.0,0.00013529,2]
[424766174,1781141439000,-262.51080965,0.00013518,2]
[424766176,1781141439000,-150.0,0.00013524,2]
[424766177,1781141439000,-1681.72146149,0.00013527,2]
[424766180,1781141439000,-150.0,0.00013541,2]
[424766181,1781141439000,-291.698031,0.00013545,2]
[424766159,1781141439000,-150.0,0.00013488,2]
[424766155,1781141439000,-1681.72146149,0.00013451,2]
[424766128,1781141439000,-1062.51,0.00013294,2]
[424766157,1781141439000,-500.0,0.00013487,2]
[424766154,1781141439000,-1681.72146149,0.00013431,2]
[424766131,1781141439000,-162.198812,0.00013319,2]
[424766135,1781141439000,-2000.0,0.00013338,2]
[424766136,1781141439000,-1681.72146149,0.00013347,2]
[424766182,1781141439000,-1681.72146149,0.00013545,2]
[424766132,1781141439000,-201.864724,0.00013319,2]
[424766137,1781141439000,-191.012951,0.00013349,2]
[424766133,1781141439000,-1681.72146149,0.00013325,2]
[424766140,1781141439000,-1681.72146149,0.0001339,2]
[424766149,1781141439000,-151.0,0.00013396,2]
[424766141,1781141439000,-152.0,0.00013396,2]
[424766142,1781141439000,-152.0,0.00013396,2]
[424766138,1781141439000,-1681.72146149,0.00013369,2]
[424766145,1781141439000,-152.0,0.00013396,2]
[424766148,1781141439000,-151.0,0.00013396,2]
[424766147,1781141439000,-152.0,0.00013396,2]
[424766143,1781141439000,-152.0,0.00013396,2]
[424766152,1781141439000,-151.0,0.00013396,2]
[424766144,1781141439000,-152.0,0.00013396,2]
[424766146,1781141439000,-152.0,0.00013396,2]
[424766150,1781141439000,-151.0,0.00013396,2]
[424766151,1781141439000,-151.0,0.00013396,2]
[424766153,1781141439000,-1681.72146149,0.00013411,2]
[424766156,1781141439000,-1681.72146149,0.00013471,2]
[424766139,1781141439000,-433.0,0.0001338,2]
[424766221,1781141440000,-203.229266,0.0001368,2]
[424766217,1781141440000,-262.51080965,0.00013669,2]
[424766220,1781141440000,-150.0,0.00013675,2]
[424766216,1781141440000,-1681.72146149,0.00013666,2]
[424766210,1781141440000,-150.0,0.00013634,2]
[424766212,1781141440000,-150.0,0.00013648,2]
[424766215,1781141440000,-262.51080965,0.00013654,2]
[424766213,1781141440000,-1681.72146149,0.00013649,2]
[424766218,1781141440000,-150.0,0.0001367,2]
[424766214,1781141440000,-150.0,0.00013654,2]
[424766219,1781141440000,-150.0,0.0001367,2]
[424766233,1781141440000,-500.0,0.00013698,2]
[424766224,1781141440000,-150.0,0.00013696,2]
[424766223,1781141440000,-262.51080965,0.00013684,2]
[424766228,1781141440000,-502.29186961,0.00013698,2]
[424766226,1781141440000,-500.0,0.00013698,2]
[424766225,1781141440000,-574.57860626,0.00013698,2]
[424766227,1781141440000,-500.0,0.00013698,2]
[424766231,1781141440000,-360.74444668,0.00013698,2]
[424766229,1781141440000,-500.0,0.00013698,2]
[424766230,1781141440000,-500.0,0.00013698,2]
[424766232,1781141440000,-500.0,0.00013698,2]
[424766209,1781141440000,-150.0,0.00013634,2]
[424766222,1781141440000,-1681.72146149,0.00013682,2]
[424766208,1781141440000,-1681.72146149,0.00013633,2]
[424766201,1781141440000,-158.52695956,0.00013611,2]
[424766206,1781141440000,-150.0,0.00013621,2]
[424766240,1781141440000,-500.0,0.00013698,2]
[424766184,1781141440000,-12050.1470544,0.00013554,2]
[424766183,1781141440000,-262.51080965,0.00013548,2]
[424766185,1781141440000,-150.0,0.00013561,2]
[424766186,1781141440000,-150.0,0.00013561,2]
[424766188,1781141440000,-262.51080965,0.00013563,2]
[424766187,1781141440000,-1681.72146149,0.00013563,2]
[424766190,1781141440000,-150.0,0.00013571,2]
[424766189,1781141440000,-150.0,0.00013568,2]
[424766191,1781141440000,-262.51080965,0.00013578,2]
[424766193,1781141440000,-262.51080965,0.00013594,2]
[424766205,1781141440000,-1681.72146149,0.00013616,2]
[424766192,1781141440000,-1681.72146149,0.00013581,2]
[424766195,1781141440000,-150.0,0.00013597,2]
[424766198,1781141440000,-1681.72146149,0.00013598,2]
[424766196,1781141440000,-150.0,0.00013597,2]
[424766200,1781141440000,-262.51080965,0.00013609,2]
[424766197,1781141440000,-759.60467476,0.00013598,2]
[424766199,1781141440000,-1634.37460576,0.00013599,2]
[424766203,1781141440000,-150.0,0.00013613,2]
[424766202,1781141440000,-227.660471,0.00013612,2]
[424766204,1781141440000,-150.0,0.00013613,2]
[424766211,1781141440000,-262.51080965,0.00013639,2]
[424766207,1781141440000,-262.51080965,0.00013624,2]
[424766194,1781141440000,-150.0,0.00013595,2]
[424766234,1781141440000,-500.0,0.00013698,2]
[424766238,1781141440000,-461.11868739,0.00013698,2]
[424766237,1781141440000,-500.0,0.00013698,2]
[424766276,1781141440000,-500.0,0.00013698,2]
[424766267,1781141440000,-500.0,0.00013698,2]
[424766273,1781141440000,-500.0,0.00013698,2]
[424766271,1781141440000,-500.0,0.00013698,2]
[424766266,1781141440000,-500.0,0.00013698,2]
[424766268,1781141440000,-500.0,0.00013698,2]
[424766275,1781141440000,-500.0,0.00013698,2]
[424766270,1781141440000,-500.0,0.00013698,2]
[424766272,1781141440000,-500.0,0.00013698,2]
[424766274,1781141440000,-289.86791566,0.00013698,2]
[424766288,1781141440000,-500.0,0.00013698,2]
[424766269,1781141440000,-500.0,0.00013698,2]
[424766278,1781141440000,-500.0,0.00013698,2]
[424766280,1781141440000,-500.0,0.00013698,2]
[424766282,1781141440000,-500.0,0.00013698,2]
[424766281,1781141440000,-500.0,0.00013698,2]
[424766284,1781141440000,-500.0,0.00013698,2]
[424766285,1781141440000,-500.0,0.00013698,2]
[424766283,1781141440000,-500.0,0.00013698,2]
[424766286,1781141440000,-500.0,0.00013698,2]
[424766287,1781141440000,-500.0,0.00013698,2]
[424766289,1781141440000,-500.0,0.00013698,2]
[424766290,1781141440000,-500.0,0.00013698,2]
[424766236,1781141440000,-500.0,0.00013698,2]
[424766279,1781141440000,-500.0,0.00013698,2]
[424766265,1781141440000,-500.0,0.00013698,2]
[424766277,1781141440000,-500.0,0.00013698,2]
[424766261,1781141440000,-500.0,0.00013698,2]
[424766263,1781141440000,-500.0,0.00013698,2]
[424766242,1781141440000,-500.0,0.00013698,2]
[424766241,1781141440000,-500.0,0.00013698,2]
[424766235,1781141440000,-500.0,0.00013698,2]
[424766239,1781141440000,-500.0,0.00013698,2]
[424766243,1781141440000,-500.0,0.00013698,2]
[424766245,1781141440000,-500.0,0.00013698,2]
[424766246,1781141440000,-500.0,0.00013698,2]
[424766249,1781141440000,-500.0,0.00013698,2]
[424766251,1781141440000,-579.00323412,0.00013698,2]
[424766250,1781141440000,-500.0,0.00013698,2]
[424766254,1781141440000,-500.0,0.00013698,2]
[424766247,1781141440000,-500.0,0.00013698,2]
[424766259,1781141440000,-500.0,0.00013698,2]
[424766262,1781141440000,-500.0,0.00013698,2]
[424766248,1781141440000,-500.0,0.00013698,2]
[424766260,1781141440000,-500.0,0.00013698,2]
[424766257,1781141440000,-179.84270164,0.00013698,2]
[424766258,1781141440000,-500.0,0.00013698,2]
[424766255,1781141440000,-500.0,0.00013698,2]
[424766256,1781141440000,-500.0,0.00013698,2]
[424766253,1781141440000,-476.97476305,0.00013698,2]
[424766244,1781141440000,-500.0,0.00013698,2]
[424766252,1781141440000,-590.47777373,0.00013698,2]
[424766264,1781141440000,-500.0,0.00013698,2]
[424766326,1781141441000,-649.09,0.00013698,2]
[424766327,1781141441000,-649.09,0.00013698,2]
[424766325,1781141441000,-649.09,0.00013698,2]
[424766331,1781141441000,-649.09,0.00013698,2]
[424766328,1781141441000,-649.09,0.00013698,2]
[424766320,1781141441000,-692.93,0.00013698,2]
[424766323,1781141441000,-692.93,0.00013698,2]
[424766319,1781141441000,-692.93,0.00013698,2]
[424766322,1781141441000,-692.93,0.00013698,2]
[424766332,1781141441000,-552.44,0.00013698,2]
[424766324,1781141441000,-692.93,0.00013698,2]
[424766329,1781141441000,-649.09,0.00013698,2]
[424766345,1781141441000,-554.77,0.00013698,2]
[424766333,1781141441000,-552.44,0.00013698,2]
[424766335,1781141441000,-552.44,0.00013698,2]
[424766336,1781141441000,-552.44,0.00013698,2]
[424766339,1781141441000,-554.77,0.00013698,2]
[424766334,1781141441000,-552.44,0.00013698,2]
[424766337,1781141441000,-552.44,0.00013698,2]
[424766340,1781141441000,-554.77,0.00013698,2]
[424766342,1781141441000,-554.77,0.00013698,2]
[424766338,1781141441000,-552.44,0.00013698,2]
[424766341,1781141441000,-554.77,0.00013698,2]
[424766343,1781141441000,-554.77,0.00013698,2]
[424766317,1781141441000,-692.93,0.00013698,2]
[424766330,1781141441000,-649.09,0.00013698,2]
[424766316,1781141441000,-500.0,0.00013698,2]
[424766294,1781141441000,-413.03435697,0.00013698,2]
[424766314,1781141441000,-500.0,0.00013698,2]
[424766346,1781141441000,-500.0,0.00013698,2]
[424766292,1781141441000,-500.0,0.00013698,2]
[424766291,1781141441000,-500.0,0.00013698,2]
[424766293,1781141441000,-500.0,0.00013698,2]
[424766300,1781141441000,-500.0,0.00013698,2]
[424766299,1781141441000,-500.0,0.00013698,2]
[424766295,1781141441000,-500.0,0.00013698,2]
[424766296,1781141441000,-500.0,0.00013698,2]
[424766297,1781141441000,-500.0,0.00013698,2]
[424766298,1781141441000,-500.0,0.00013698,2]
[424766301,1781141441000,-500.0,0.00013698,2]
[424766303,1781141441000,-500.0,0.00013698,2]
[424766304,1781141441000,-500.0,0.00013698,2]
[424766305,1781141441000,-500.0,0.00013698,2]
[424766302,1781141441000,-502.14487461,0.00013698,2]
[424766306,1781141441000,-500.0,0.00013698,2]
[424766310,1781141441000,-500.0,0.00013698,2]
[424766308,1781141441000,-500.0,0.00013698,2]
[424766312,1781141441000,-500.0,0.00013698,2]
[424766311,1781141441000,-500.0,0.00013698,2]
[424766307,1781141441000,-500.0,0.00013698,2]
[424766309,1781141441000,-500.0,0.00013698,2]
[424766313,1781141441000,-500.0,0.00013698,2]
[424766318,1781141441000,-692.93,0.00013698,2]
[424766321,1781141441000,-692.93,0.00013698,2]
[424766315,1781141441000,-500.0,0.00013698,2]
[424766355,1781141441000,-500.0,0.00013698,2]
[424766397,1781141441000,-2429.12,0.00013698,2]
[424766351,1781141441000,-538.58,0.00013698,2]
[424766375,1781141441000,-2508.65,0.00013698,2]
[424766380,1781141441000,-2508.65,0.00013698,2]
[424766382,1781141441000,-2508.65,0.00013698,2]
[424766381,1781141441000,-2508.65,0.00013698,2]
[424766384,1781141441000,-500.0,0.00013698,2]
[424766392,1781141441000,-500.0,0.00013698,2]
[424766387,1781141441000,-500.0,0.00013698,2]
[424766383,1781141441000,-2508.65,0.00013698,2]
[424766388,1781141441000,-500.0,0.00013698,2]
[424766390,1781141441000,-500.0,0.00013698,2]
[424766386,1781141441000,-500.0,0.00013698,2]
[424766389,1781141441000,-500.0,0.00013698,2]
[424766385,1781141441000,-500.0,0.00013698,2]
[424766391,1781141441000,-500.0,0.00013698,2]
[424766403,1781141441000,-200.0,0.00013699,2]
[424766394,1781141441000,-2429.12,0.00013698,2]
[424766393,1781141441000,-500.0,0.00013698,2]
[424766396,1781141441000,-2429.12,0.00013698,2]
[424766398,1781141441000,-2429.12,0.00013698,2]
[424766395,1781141441000,-2429.12,0.00013698,2]
[424766404,1781141441000,-2500.0,0.00013699,2]
[424766400,1781141441000,-2429.12,0.00013698,2]
[424766399,1781141441000,-2429.12,0.00013698,2]
[424766347,1781141441000,-538.58,0.00013698,2]
[424766401,1781141441000,-2429.12,0.00013698,2]
[424766378,1781141441000,-2508.65,0.00013698,2]
[424766377,1781141441000,-175.0,0.00013698,2]
[424766402,1781141441000,-1681.72146149,0.00013698,2]
[424766376,1781141441000,-2508.65,0.00013698,2]
[424766372,1781141441000,-887.49,0.00013698,2]
[424766348,1781141441000,-538.58,0.00013698,2]
[424766349,1781141441000,-538.58,0.00013698,2]
[424766344,1781141441000,-554.77,0.00013698,2]
[424766354,1781141441000,-500.0,0.00013698,2]
[424766353,1781141441000,-538.58,0.00013698,2]
[424766352,1781141441000,-538.58,0.00013698,2]
[424766356,1781141441000,-500.0,0.00013698,2]
[424766357,1781141441000,-500.0,0.00013698,2]
[424766359,1781141441000,-500.0,0.00013698,2]
[424766358,1781141441000,-500.0,0.00013698,2]
[424766360,1781141441000,-500.0,0.00013698,2]
[424766363,1781141441000,-500.0,0.00013698,2]
[424766350,1781141441000,-538.58,0.00013698,2]
[424766365,1781141441000,-500.0,0.00013698,2]
[424766361,1781141441000,-500.0,0.00013698,2]
[424766364,1781141441000,-500.0,0.00013698,2]
[424766362,1781141441000,-500.0,0.00013698,2]
[424766366,1781141441000,-887.49,0.00013698,2]
[424766369,1781141441000,-887.49,0.00013698,2]
[424766379,1781141441000,-175.58311357,0.00013698,2]
[424766368,1781141441000,-887.49,0.00013698,2]
[424766367,1781141441000,-887.49,0.00013698,2]
[424766370,1781141441000,-887.49,0.00013698,2]
[424766371,1781141441000,-887.49,0.00013698,2]
[424766374,1781141441000,-2508.65,0.00013698,2]
[424766373,1781141441000,-887.49,0.00013698,2]
[424766446,1781141442000,-150.0,0.00013809,2]
[424766441,1781141442000,-262.51080965,0.0001379,2]
[424766444,1781141442000,-262.51080965,0.00013806,2]
[424766437,1781141442000,-150.0,0.0001378,2]
[424766435,1781141442000,-1681.72146149,0.00013776,2]
[424766439,1781141442000,-4930.90993932,0.00013782,2]
[424766440,1781141442000,-150.0,0.00013782,2]
[424766436,1781141442000,-150.0,0.00013779,2]
[424766432,1781141442000,-262.51080965,0.0001376,2]
[424766438,1781141442000,-150.0,0.0001378,2]
[424766442,1781141442000,-1681.72146149,0.00013791,2]
[424766451,1781141442000,-262.51080965,0.00013821,2]
[424766445,1781141442000,-1681.72146149,0.00013806,2]
[424766447,1781141442000,-152.0,0.00013816,2]
[424766457,1781141442000,-150.0,0.00013853,2]
[424766448,1781141442000,-150.0,0.00013817,2]
[424766449,1781141442000,-150.0,0.00013817,2]
[424766450,1781141442000,-150.0,0.00013821,2]
[424766456,1781141442000,-150.0,0.00013853,2]
[424766458,1781141442000,-1343.03436722,0.00013854,2]
[424766454,1781141442000,-262.51080965,0.00013851,2]
[424766452,1781141442000,-150.0,0.00013836,2]
[424766433,1781141442000,-1681.72146149,0.00013761,2]
[424766455,1781141442000,-43616.41761916,0.00013852,2]
[424766443,1781141442000,-1000.0,0.000138,3]
[424766430,1781141442000,-150.0,0.00013755,2]
[424766422,1781141442000,-262.51080965,0.0001373,2]